bitfinex/quotes_ETHUSD_20241019
["timestamp","ask_amount","ask_price","bid_price","bid_amount"]
[1729321672741,3.783,2643.4,2643.1,1.1884455]
[1729321672955,3.783,2643.4,2643.2,0.28335652]
[1729321673278,3.783,2643.4,2643.1,1.1884455]
[1729321673479,3.783,2643.4,2643.2,0.28334966]
[1729321673675,3.783,2643.4,2643.1,1.1884455]
[1729321674006,3.783,2643.4,2643.2,0.28334962]
[1729321674199,3.783,2643.4,2643.1,1.1884455]
[1729321674399,3.783,2643.4,2643.2,0.28334426]
[1729321675453,3.783,2643.4,2643.1,1.1884455]
[1729321675877,3.783,2643.4,2643.2,0.28333939]
[1729321676056,3.783,2643.4,2643.1,1.1884455]
[1729321676382,3.783,2643.4,2643.2,0.28335974]
[1729321676543,3.783,2643.4,2643.1,1.1884455]
[1729321676744,3.783,2643.4,2643.2,0.28335972]
[1729321676955,3.783,2643.4,2643.1,1.1884455]
[1729321677252,3.783,2643.4,2643.2,0.283361]
[1729321677457,3.783,2643.4,2643.3,0.283361]
[1729321677643,3.783,2643.4,2643.1,1.1884455]
[1729321677843,3.783,2643.4,2643.2,0.28338435]
[1729321678179,3.783,2643.4,2643.3,0.28338435]
[1729321679717,3.783,2643.4,2643.3,0.28343045]
[1729321685942,3.783,2643.4,2643.1,1.1884455]
[1729321686118,3.783,2643.4,2643.3,0.28349835]
[1729321690302,3.783,2643.4,2643.3,0.28354873]
[1729321693727,3.783,2643.4,2643.3,0.28358725]
[1729321695993,4.618818,2643.4,2643.3,0.28358725]
[1729321696232,5.410618,2643.4,2643.3,0.28358725]
[1729321696591,3.78329,2643.2,2643.1,1.1884455]
[1729321696823,3.78329,2643.2,2643.1,1.472088]
[1729321697424,3.78329,2643.2,2643.1,1.92590257]
[1729321697787,3.78329,2643.2,2643.1,1.472088]
[1729321699190,3.78329,2643.2,2643.1,1.92589877]
[1729321699390,3.78329,2643.2,2643.1,1.472088]
[1729321700393,3.78329,2643.2,2643.1,1.92586324]
[1729321700944,3.78329,2643.2,2643.1,1.472088]
[1729321701304,3.78329,2643.2,2643.1,1.47204839]
[1729321702546,3.78329,2643.2,2643.1,0.28360289]
[1729321704667,3.78329,2643.2,2643.1,1.47204839]
[1729321705247,3.78329,2643.2,2643.1,0.28357444]
[1729321708054,4.5748,2643.4,2643.1,0.28357444]
[1729321708218,4.5748,2643.4,2643.2,0.28357444]
[1729321708430,8.35789,2643.4,2643.0,1.9938455]
[1729321708638,8.35788,2643.4,2643.1,0.28355946]
[1729321708951,3.783,2643.4,2643.0,1.9938455]
[1729321709120,3.783,2643.4,2643.1,0.28355946]
[1729321709319,3.783,2643.4,2643.2,0.28355946]
[1729321709523,3.783,2643.4,2643.0,1.9938455]
[1729321709716,3.783,2643.4,2643.1,0.28355758]
[1729321709943,7.56609,2643.4,2643.2,0.28355758]
[1729321710160,3.783,2643.4,2643.0,1.9938455]
[1729321710457,3.783,2643.4,2643.1,0.28355312]
[1729321710632,3.783,2643.4,2643.2,0.28355312]
[1729321710836,3.783,2643.4,2643.0,6.71211945]
[1729321711167,3.783,2643.4,2643.1,0.28355286]
[1729321711314,3.783,2643.4,2643.2,0.28355286]
[1729321711520,3.783,2643.4,2643.0,1.9938455]
[1729321711747,3.783,2643.4,2643.1,0.28355]
[1729321711928,3.783,2643.4,2643.2,0.28355]
[1729321712139,3.783,2643.4,2643.0,1.9938455]
[1729321712333,3.783,2643.4,2643.1,0.28354641]
[1729321712564,3.783,2643.4,2643.2,0.28354641]
[1729321712751,3.783,2643.4,2643.0,1.9938455]
[1729321712925,3.783,2643.4,2643.1,0.28354631]
[1729321713264,3.783,2643.4,2643.2,0.28354631]
[1729321713462,3.783,2643.4,2643.0,1.9938455]
[1729321713650,3.783,2643.4,2643.1,0.28354482]
[1729321713817,3.783,2643.4,2643.2,0.28354482]
[1729321714023,4.53405,2643.6,2643.1,1.1884455]
[1729321714319,3.78296,2643.5,2643.2,0.28354334]
[1729321714516,3.78296,2643.5,2643.1,1.1884455]
[1729321714745,3.78296,2643.5,2643.2,0.28354324]
[1729321714943,4.53405,2643.6,2643.3,0.28354324]
[1729321715148,3.78286,2643.5,2643.2,0.7648]
[1729321715345,3.78286,2643.5,2643.3,0.28354211]
[1729321715565,3.78286,2643.5,2643.2,0.7648]
[1729321715758,3.78286,2643.5,2643.3,0.28354211]
[1729321715973,3.78286,2643.5,2643.2,0.7648]
[1729321716185,3.78286,2643.5,2643.3,0.28354465]
[1729321716471,3.78286,2643.5,2643.2,0.7648]
[1729321716779,3.78286,2643.5,2643.3,0.28354357]
[1729321716946,3.78286,2643.5,2643.2,0.7648]
[1729321717145,3.78286,2643.5,2643.3,0.28354344]
[1729321717375,3.78286,2643.5,2643.2,0.7648]
[1729321717669,3.78286,2643.5,2643.3,0.28354474]
[1729321717869,3.78286,2643.5,2643.2,0.7648]
[1729321718083,3.78286,2643.5,2643.3,0.28354477]
[1729321718280,3.78286,2643.5,2643.2,0.7648]
[1729321718484,3.78286,2643.5,2643.3,0.28354684]
[1729321718659,3.78286,2643.5,2643.2,0.7648]
[1729321718861,3.78286,2643.5,2643.3,0.2835468]
[1729321719046,3.78286,2643.5,2643.2,0.7648]
[1729321719247,3.78286,2643.5,2643.3,0.28354928]
[1729321719481,3.78286,2643.5,2643.2,0.7648]
[1729321719711,3.78286,2643.5,2643.3,0.2835484]
[1729321719987,3.78286,2643.5,2643.2,0.7648]
[1729321720160,3.78286,2643.5,2643.3,0.28354875]
[1729321720359,3.78286,2643.5,2643.2,0.7648]
[1729321720563,3.78286,2643.5,2643.3,0.28355015]
[1729321720860,3.78286,2643.5,2643.2,0.7648]
[1729321721062,3.78286,2643.5,2643.3,0.28354995]
[1729321721265,3.78286,2643.5,2643.2,0.7648]
[1729321721561,3.78286,2643.5,2643.3,0.28355231]
[1729321721772,3.78275,2643.6,2643.2,0.7648]
[1729321721976,3.78275,2643.6,2643.3,0.28353167]
[1729321721977,3.78287,2643.5,2643.3,0.28353167]
[1729321722169,3.78287,2643.5,2643.4,0.28353167]
[1729321723487,3.78277,2643.6,2643.4,1.03613167]
[1729321723691,3.78277,2643.6,2643.4,0.7526]
[1729321725259,3.78277,2643.6,2643.3,1.1884455]
[1729321725460,3.78286,2643.5,2643.4,0.28349616]
[1729321728097,3.78301,2643.4,2643.2,1.1884455]
[1729321728253,3.78301,2643.4,2643.3,0.28349736]
[1729321730611,4.55971,2643.4,2643.3,0.28349736]
[1729321731811,4.55971,2643.4,2643.1,1.1884455]
[1729321731812,4.5597,2643.4,2643.1,1.1884455]
[1729321732108,4.5597,2643.4,2643.2,0.28350209]
[1729321732312,0.7767,2643.4,2643.3,0.28350209]
[1729321733970,3.78287,2643.5,2643.3,0.28350209]
[1729321734274,3.78287,2643.5,2643.2,1.1884455]
[1729321734606,3.78287,2643.5,2643.3,0.28350201]
[1729321734810,3.78287,2643.5,2643.1,1.1884455]
[1729321734982,3.78302,2643.4,2643.2,0.28350614]
[1729321735180,3.78302,2643.4,2643.3,0.28350614]
[1729321735366,4.61403,2643.6,2643.3,0.28350614]
[1729321735572,3.78286,2643.5,2643.2,1.1884455]
[1729321735866,3.78286,2643.5,2643.1,1.1884455]
[1729321736069,3.78286,2643.5,2643.3,0.28350268]
[1729321736311,3.78286,2643.5,2643.1,1.1884455]
[1729321736482,3.78286,2643.5,2643.2,0.2835068]
[1729321736673,3.78286,2643.5,2643.3,0.2835068]
[1729321736874,3.78286,2643.5,2643.1,1.1884455]
[1729321737175,3.78286,2643.5,2643.2,0.28350656]
[1729321737375,3.78286,2643.5,2643.3,0.28350656]
[1729321737570,3.78286,2643.5,2643.1,1.1884455]
[1729321737801,3.78286,2643.5,2643.2,0.28350825]
[1729321738008,3.78286,2643.5,2643.3,0.28350825]
[1729321738204,3.78301,2643.4,2643.2,1.1884455]
[1729321738404,3.78301,2643.4,2643.3,0.28350772]
[1729321738606,3.78286,2643.5,2643.3,0.28350772]
[1729321738823,3.78286,2643.5,2643.2,1.1884455]
[1729321739116,3.78286,2643.5,2643.3,0.28350715]
[1729321739283,3.78286,2643.5,2643.2,1.1884455]
[1729321739485,3.78286,2643.5,2643.3,0.28350819]
[1729321739675,3.78286,2643.5,2643.2,1.1884455]
[1729321739874,3.78286,2643.5,2643.3,0.28350813]
[1729321740076,3.78286,2643.5,2643.2,1.9653455]
[1729321740275,3.78286,2643.5,2643.3,0.28350578]
[1729321740477,3.78286,2643.5,2643.2,1.9653455]
[1729321740705,3.78289,2643.5,2643.3,0.28350777]
[1729321740915,3.78289,2643.5,2643.2,1.9653455]
[1729321741103,3.78289,2643.5,2643.3,0.28350523]
[1729321741300,7.56555,2643.6,2643.2,1.9653455]
[1729321741490,3.78273,2643.6,2643.3,0.28350418]
[1729321741688,3.78273,2643.6,2643.2,1.9653455]
[1729321741889,7.56555,2643.6,2643.3,0.2835041]
[1729321742093,7.56555,2643.6,2643.2,1.9653455]
[1729321742276,7.56555,2643.6,2643.3,0.28350151]
[1729321742476,7.56555,2643.6,2643.2,1.9653455]
[1729321742698,7.56555,2643.6,2643.3,0.28350212]
[1729321743003,3.78287,2643.5,2643.2,1.9653455]
[1729321743194,3.78287,2643.5,2643.3,0.28350319]
[1729321743394,3.78273,2643.6,2643.2,1.9653455]
[1729321743612,7.56556,2643.6,2643.3,0.28350135]
[1729321743790,7.56556,2643.6,2643.2,1.9653455]
[1729321743998,7.56556,2643.6,2643.3,0.28350176]
[1729321744304,3.78273,2643.6,2643.2,1.9653455]
[1729321744503,3.78273,2643.6,2643.3,0.28350157]
[1729321744684,3.78273,2643.6,2643.4,0.28350157]
[1729321744879,3.78273,2643.6,2643.2,1.9653455]
[1729321745080,3.78273,2643.6,2643.3,0.28349863]
[1729321745316,7.56556,2643.6,2643.4,0.28349863]
[1729321745479,7.56556,2643.6,2643.2,1.9653455]
[1729321745676,7.56555,2643.6,2643.3,0.28349397]
[1729321745914,7.56555,2643.6,2643.4,0.28349397]
[1729321746119,7.56555,2643.6,2643.2,1.9653455]
[1729321746324,7.56555,2643.6,2643.3,0.28349181]
[1729321746483,7.56555,2643.6,2643.4,0.28349181]
[1729321746685,7.56555,2643.6,2643.2,1.9653455]
[1729321747018,7.56555,2643.6,2643.3,0.28349173]
[1729321747239,7.56555,2643.6,2643.4,0.28349173]
[1729321747421,7.56555,2643.6,2643.2,1.9653455]
[1729321747579,7.56555,2643.6,2643.3,0.2834908]
[1729321747787,7.56556,2643.6,2643.4,0.2834908]
[1729321748017,7.56556,2643.6,2643.2,1.9653455]
[1729321748223,7.56556,2643.6,2643.3,0.28349055]
[1729321748418,7.56556,2643.6,2643.4,0.28349055]
[1729321748718,7.56556,2643.6,2643.2,1.9653455]
[1729321748921,7.56556,2643.6,2643.3,0.28348914]
[1729321749220,3.78273,2643.6,2643.4,0.28348914]
[1729321749427,7.56553,2643.6,2643.2,1.9653455]
[1729321749581,7.56554,2643.6,2643.2,1.9653455]
[1729321749784,7.56554,2643.6,2643.3,0.283488]
[1729321750011,7.56554,2643.6,2643.4,0.283488]
[1729321750220,7.56554,2643.6,2643.2,1.9653455]
[1729321750522,7.56554,2643.6,2643.3,0.28349202]
[1729321750695,7.56554,2643.6,2643.4,0.28349202]
[1729321750901,3.78273,2643.6,2643.2,1.9653455]
[1729321751229,7.56556,2643.6,2643.3,0.28349214]
[1729321751399,7.56556,2643.6,2643.4,0.28349214]
[1729321751717,7.56556,2643.6,2643.2,1.9653455]
[1729321751910,7.56556,2643.6,2643.3,0.28349367]
[1729321752108,7.56556,2643.6,2643.4,0.28349367]
[1729321752328,7.56556,2643.6,2643.2,1.9653455]
[1729321752531,7.56556,2643.6,2643.3,0.28349828]
[1729321752733,7.56556,2643.6,2643.4,0.28349828]
[1729321753020,7.56556,2643.6,2643.2,1.96432264]
[1729321753217,7.56556,2643.6,2643.3,0.28350376]
[1729321753546,7.56555,2643.6,2643.4,0.28350376]
[1729321753752,8.15744969,2643.6,2643.2,1.96432264]
[1729321754050,8.15744969,2643.6,2643.3,0.28350344]
[1729321754220,8.15744969,2643.6,2643.4,0.28350344]
[1729321754423,8.15744969,2643.6,2643.2,1.96432264]
[1729321754621,8.15744969,2643.6,2643.3,0.28350989]
[1729321754819,8.15744969,2643.6,2643.4,0.28350989]
[1729321755021,8.15744969,2643.6,2643.2,1.96432264]
[1729321755204,8.15744969,2643.6,2643.3,0.28351651]
[1729321755406,8.15744969,2643.6,2643.2,1.96432264]
[1729321755407,8.15744969,2643.6,2643.4,0.28351651]
[1729321755645,8.15744969,2643.6,2643.2,1.96432264]
[1729321755820,8.15744969,2643.6,2643.3,0.28351682]
[1729321756021,8.15744969,2643.6,2643.4,0.28351682]
[1729321756206,8.15744969,2643.6,2643.2,1.96432264]
[1729321756406,8.15744969,2643.6,2643.3,0.28352556]
[1729321756645,8.15744969,2643.6,2643.4,0.28352556]
[1729321756840,8.15744969,2643.6,2643.2,1.96432264]
[1729321757046,8.15744969,2643.6,2643.3,0.28352557]
[1729321757447,8.15744969,2643.6,2643.4,0.28352557]
[1729321757651,8.15744969,2643.6,2643.3,1.1884455]
[1729321757812,8.15744969,2643.6,2643.4,0.28353479]
[1729321758012,8.15744969,2643.6,2643.3,1.1884455]
[1729321758212,8.15744969,2643.6,2643.4,0.28354591]
[1729321758534,8.15744969,2643.6,2643.3,1.1884455]
[1729321758734,8.15744969,2643.6,2643.4,0.28354567]
[1729321758913,8.15744969,2643.6,2643.3,1.1884455]
[1729321759113,8.15744969,2643.6,2643.4,0.28354571]
[1729321759316,8.15744969,2643.6,2643.3,1.1884455]
[1729321759516,8.15744969,2643.6,2643.4,0.28355821]
[1729321759833,8.15744969,2643.6,2643.2,1.96432264]
[1729321760037,8.15743969,2643.6,2643.3,1.47200632]
[1729321760249,8.15743969,2643.6,2643.4,0.28356082]
[1729321760446,8.15743969,2643.6,2643.3,1.1884455]
[1729321760755,8.15743969,2643.6,2643.4,0.28356984]
[1729321760926,8.15743969,2643.6,2643.3,1.1884455]
[1729321761129,8.15743969,2643.6,2643.4,0.28356962]
[1729321761322,8.15743969,2643.6,2643.3,1.1884455]
[1729321761522,8.15743969,2643.6,2643.4,0.28357781]
[1729321761736,8.15743969,2643.6,2643.3,1.1884455]
[1729321761939,8.15743969,2643.6,2643.4,0.28357694]
[1729321762140,8.15743969,2643.6,2643.2,1.96432264]
[1729321762333,8.15743969,2643.6,2643.3,0.28358514]
[1729321762540,8.15743969,2643.6,2643.4,0.28358514]
[1729321762836,8.15743969,2643.6,2643.3,1.1884455]
[1729321763149,8.15743969,2643.6,2643.4,0.28358517]
[1729321763350,8.15743969,2643.6,2643.3,1.1884455]
[1729321763545,8.15743969,2643.6,2643.4,0.28359247]
[1729321763750,8.15743969,2643.6,2643.3,1.1884455]
[1729321763953,8.15743969,2643.6,2643.4,0.28359249]
[1729321764120,8.15743969,2643.6,2643.3,1.1884455]
[1729321764326,4.37462969,2643.6,2643.4,0.28360027]
[1729321764670,8.15743969,2643.6,2643.3,1.1884455]
[1729321764869,8.15743969,2643.6,2643.4,0.28359933]
[1729321765071,8.15743969,2643.6,2643.3,1.1884455]
[1729321765363,8.15743969,2643.6,2643.4,0.28360835]
[1729321765559,8.15743969,2643.6,2643.3,1.1884455]
[1729321765722,8.15743969,2643.6,2643.4,0.28360832]
[1729321766017,8.15743969,2643.6,2643.3,1.1884455]
[1729321766220,8.15743969,2643.6,2643.4,0.28361677]
[1729321766472,8.15743969,2643.6,2643.3,1.1884455]
[1729321766616,8.15743969,2643.6,2643.4,0.28361853]
[1729321766825,8.15743969,2643.6,2643.3,1.1884455]
[1729321767038,8.15744969,2643.6,2643.4,0.28361497]
[1729321767238,4.37462969,2643.6,2643.5,0.28361497]
[1729321767759,4.37462969,2643.6,2643.5,0.28362702]
[1729321768340,4.37462969,2643.6,2643.3,1.1884455]
[1729321768537,4.37462969,2643.6,2643.4,0.28362699]
[1729321768730,4.37462969,2643.6,2643.3,1.1884455]
[1729321768731,3.78286,2643.5,2643.3,1.1884455]
[1729321768933,3.78286,2643.5,2643.4,0.28363]
[1729321770129,3.78286,2643.5,2643.2,1.1884455]
[1729321770471,3.78343,2643.1,2643.0,1.1884455]
[1729321770676,3.78415,2642.6,2642.5,1.1884455]
[1729321770856,3.78415,2642.6,2642.5,1.19154218]
[1729321771030,3.78415,2642.6,2642.4,1.24062858]
[1729321771425,3.78429,2642.5,2642.4,0.0490864]
[1729321771840,3.78415,2642.6,2642.4,0.0490864]
[1729321772038,3.78429,2642.5,2642.4,0.0490864]
[1729321774331,3.78429,2642.5,2642.4,0.33282737]
[1729321778885,3.78429,2642.5,2642.4,0.0490864]
[1729321782293,4.620584,2642.5,2642.4,0.0490864]
[1729321803344,3.78429,2642.5,2642.4,0.0490864]
[1729321806481,3.78415,2642.6,2642.4,0.0490864]
[1729321806666,3.78429,2642.5,2642.4,0.0490864]
[1729321807757,5.12359,2642.5,2642.4,0.0490864]
[1729321814083,5.71573103,2642.5,2642.4,0.0490864]
[1729321814376,6.66571913,2642.5,2642.4,0.0490864]
[1729321831307,6.66571913,2642.5,2642.4,6.4e-06]
[1729321834718,8.93771913,2642.5,2642.4,6.4e-06]
[1729321851410,12.91971913,2642.5,2642.4,6.4e-06]
[1729321851612,8.93771913,2642.5,2642.4,6.4e-06]
[1729321857943,9.33200796,2642.5,2642.4,6.4e-06]
[1729321865549,18.09526205,2642.5,2642.4,6.4e-06]
[1729321866113,14.48396205,2642.5,2642.4,6.4e-06]
[1729321866345,14.08967322,2642.5,2642.4,6.4e-06]
[1729321867965,14.63967322,2642.5,2642.4,6.4e-06]
[1729321871984,15.44697322,2642.5,2642.4,6.4e-06]
[1729321875292,17.71897322,2642.5,2642.4,6.4e-06]
[1729321883874,18.61919435,2642.5,2642.4,6.4e-06]
[1729321885475,18.11341045,2642.5,2642.4,6.4e-06]
[1729321891574,22.09541045,2642.5,2642.4,6.4e-06]
[1729321920820,13.33215636,2642.5,2642.4,6.4e-06]
[1729321925994,29.55341045,2642.5,2642.4,6.4e-06]
[1729321937730,28.74611045,2642.5,2642.4,6.4e-06]
[1729321937972,20.99212235,2642.5,2642.4,0.8216064]
[1729321938120,13.13968512,2642.5,2642.4,0.8216064]
[1729321939734,13.68968512,2642.5,2642.4,0.8216064]
[1729321940858,4.92643103,2642.5,2642.4,0.8216064]
[1729321941025,3.78429,2642.5,2642.4,0.8216064]
[1729321941664,3.7839,2642.8,2642.4,0.8216064]
[1729321941976,3.78423,2642.6,2642.4,0.8216064]
[1729321942150,3.78429,2642.5,2642.4,0.8216064]
[1729321942350,3.78423,2642.6,2642.4,0.8216064]
[1729321947561,3.78403,2642.7,2642.4,0.8216064]
[1729321950583,3.78395,2642.8,2642.4,0.8216064]
[1729321951941,7.56793,2642.8,2642.4,0.8216064]
[1729321953507,7.56791,2642.8,2642.4,0.8216064]
[1729321953705,3.78395,2642.8,2642.4,0.8216064]
[1729321954114,7.56792,2642.8,2642.4,0.8216064]
[1729321954883,3.78395,2642.8,2642.4,0.8216064]
[1729321955408,7.56792,2642.8,2642.4,0.8216064]
[1729321955611,7.56794,2642.8,2642.4,0.8216064]
[1729321955989,4.37587964,2643.0,2642.4,0.8216064]
[1729321956180,4.37587964,2643.0,2642.5,0.46060964]
[1729321956391,4.37587964,2643.0,2642.6,0.7949]
[1729321957071,4.37587964,2643.0,2642.6,0.87057602]
[1729321957669,0.59222964,2643.0,2642.7,0.7949]
[1729321957867,0.59222964,2643.0,2642.8,3.78385]
[1729321958108,0.59222964,2643.0,2642.9,1.164585]
[1729321959274,0.59222964,2643.0,2642.9,0.7862]
[1729321965435,0.59222964,2643.0,2642.9,4.56992]
[1729321965765,0.59222964,2643.0,2642.9,0.7862]
[1729321965917,0.59222964,2643.0,2642.9,4.6455829]
[1729321966113,0.59222964,2643.0,2642.9,4.56992]
[1729321966353,0.59222964,2643.0,2642.9,5.405289]
[1729321970078,0.59222964,2643.0,2642.9,1.621569]
[1729321970355,0.59222964,2643.0,2642.9,0.7862]
[1729321974543,4.37579964,2643.0,2642.9,0.7862]
[1729321975749,0.59222964,2643.0,2642.9,0.7862]
[1729321975948,4.37579964,2643.0,2642.9,0.7862]
[1729321979175,4.37579964,2643.0,2642.5,0.7819]
[1729321979375,4.37579964,2643.0,2642.5,1.23854164]
[1729321979376,3.7838,2642.9,2642.5,1.23854164]
[1729321980552,4.37579964,2643.0,2642.5,1.23854164]
[1729321980869,3.78379,2642.9,2642.5,1.23854164]
[1729321982386,3.78386,2642.8,2642.5,1.23854164]
[1729321982745,3.78415,2642.6,2642.5,0.7819]
[1729321983957,7.56786,2642.8,2642.5,0.7819]
[1729321984468,3.78402,2642.7,2642.5,0.7819]
[1729321985543,3.78415,2642.6,2642.5,0.7819]
[1729321990473,3.78415,2642.6,2642.4,6.4e-06]
[1729321990713,5.490105,2642.5,2642.4,6.4e-06]
[1729321991007,6.03946213,2642.5,2642.4,6.4e-06]
[1729321995868,6.43451281,2642.5,2642.4,6.4e-06]
[1729321996506,8.70651281,2642.5,2642.4,6.4e-06]
[1729322001648,9.29894802,2642.5,2642.4,6.4e-06]
[1729322002771,7.02694802,2642.5,2642.4,6.4e-06]
[1729322007795,5.15019089,2642.5,2642.4,6.4e-06]
[1729322008086,4.37672521,2642.5,2642.4,6.4e-06]
[1729322009580,4.92672521,2642.5,2642.4,6.4e-06]
[1729322010774,4.37672521,2642.5,2642.4,0.8086064]
[1729322012078,4.92672521,2642.5,2642.4,0.8086064]
[1729322029738,4.92672521,2642.5,2642.4,6.4e-06]
[1729322043825,4.92672521,2642.5,2642.4,0.7778064]
[1729322044764,14.44511273,2642.5,2642.4,6.4e-06]
[1729322049435,16.71711273,2642.5,2642.4,6.4e-06]
[1729322072097,15.90581273,2642.5,2642.4,6.4e-06]
[1729322078896,16.70811273,2642.5,2642.4,6.4e-06]
[1729322079099,17.10303138,2642.5,2642.4,6.4e-06]
[1729322081488,21.08903138,2642.5,2642.4,6.4e-06]
[1729322091014,17.10303138,2642.5,2642.4,6.4e-06]
[1729322091515,21.08903138,2642.5,2642.4,6.4e-06]
[1729322093091,16.55303138,2642.5,2642.4,6.4e-06]
[1729322094489,17.10303138,2642.5,2642.4,6.4e-06]
[1729322099192,21.08903138,2642.5,2642.4,6.4e-06]
[1729322104719,21.08903138,2642.5,2640.6,2.15450568]
[1729322104720,0.55,2640.9,2640.5,3.416189]
[1729322105039,4.33687,2640.7,2640.6,0.827]
[1729322107441,4.33701,2640.6,2640.5,2.589189]
[1729322109045,13.10026409,2640.6,2640.5,2.589189]
[1729322109341,15.1669775,2640.6,2640.5,2.589189]
[1729322119018,17.4399775,2640.6,2640.5,2.589189]
[1729322119224,15.1669775,2640.6,2640.5,2.589189]
[1729322122846,15.1669775,2640.6,2640.5,9e-06]
[1729322126407,15.1669775,2640.6,2640.5,0.794609]
[1729322129060,17.4399775,2640.6,2640.5,9e-06]
[1729322129349,15.1669775,2640.6,2640.5,9e-06]
[1729322142490,15.1669775,2640.6,2640.5,0.782409]
[1729322142491,13.10026409,2640.6,2640.5,0.782409]
[1729322161743,13.10026409,2640.6,2640.5,9e-06]
[1729322165712,13.69302665,2640.6,2640.5,9e-06]
[1729322183141,13.10026409,2640.6,2640.5,9e-06]
[1729322183358,15.9898475,2640.6,2640.5,9e-06]
[1729322186239,16.58262454,2640.6,2640.5,9e-06]
[1729322204025,13.69304113,2640.6,2640.5,0.777709]
[1729322204844,13.69304113,2640.6,2640.5,9e-06]
[1729322220385,4.92978704,2640.6,2640.5,9e-06]
[1729322230849,5.32382938,2640.6,2640.5,9e-06]
[1729322231051,7.79845473,2640.6,2640.5,9e-06]
[1729322231646,8.61285473,2640.6,2640.5,9e-06]
[1729322231937,9.62702034,2640.6,2640.5,9e-06]
[1729322232142,5.15213,2640.1,2640.0,2.71e-06]
[1729322232347,3.78845,2639.6,2639.5,0.76]
[1729322232635,4.33845,2639.6,2639.5,0.76]
[1729322241852,4.33845,2639.6,2639.3,0.7775]
[1729322241853,3.78878,2639.4,2639.3,0.7775]
[1729322242062,4.33878,2639.4,2639.3,0.7775]
[1729322246436,4.93176195,2639.4,2639.3,0.7775]
[1729322246747,2.99202325,2638.8,2638.4,0.7775]
[1729322246959,2.99202325,2638.8,2638.6,0.7775]
[1729322248282,6.78169325,2638.8,2638.6,0.7775]
[1729322248429,2.99202325,2638.8,2638.6,0.7775]
[1729322248778,3.78974,2638.7,2638.6,0.7775]
[1729322249063,6.78170325,2638.8,2638.6,0.7775]
[1729322249266,2.99202325,2638.8,2638.6,0.7775]
[1729322249867,3.78974,2638.7,2638.6,0.7775]
[1729322251166,4.33974,2638.7,2638.6,0.7775]
[1729322264348,3.78974,2638.7,2638.6,0.7775]
[1729322276285,3.79012,2638.5,2638.1,0.8063]
[1729322276493,3.79017,2638.4,2638.1,0.8063]
[1729322276869,3.79008,2638.5,2638.1,0.8063]
[1729322277157,3.78988,2638.6,2638.1,0.8063]
[1729322278463,3.78988,2638.6,2638.1,3.7906]
[1729322278663,3.78988,2638.6,2638.2,0.49811515]
[1729322278980,3.78988,2638.6,2638.3,0.7601]
[1729322280688,3.78975,2638.7,2638.3,0.7601]
[1729322280891,3.78,2638.9,2638.3,0.7601]
[1729322281221,3.78,2638.9,2638.2,0.49811515]
[1729322281222,3.78,2638.9,2638.4,3.79009]
[1729322281432,3.78,2638.9,2638.7,0.7601]
[1729322281590,3.78,2638.9,2638.8,0.7601]
[1729322281790,3.78,2638.9,2638.8,3.7896]
[1729322281991,3.78,2638.9,2638.8,0.7601]
[1729322282793,3.78,2638.9,2638.8,4.5497]
[1729322282994,3.78,2638.9,2638.8,5.38365]
[1729322283792,3.78,2638.9,2638.8,5.83722782]
[1729322285001,3.78,2638.9,2638.8,5.91300833]
[1729322285205,3.78,2638.9,2638.8,5.83718924]
[1729322286494,0.59298195,2639.4,2639.0,3.78922]
[1729322286695,0.59298195,2639.4,2639.2,0.7601]
[1729322288754,7.56824,2639.8,2639.2,3.78901]
[1729322289046,3.78841,2639.7,2639.3,0.7601]
[1729322290136,7.56824,2639.8,2639.3,0.7601]
[1729322290441,3.78831,2639.7,2639.5,0.7601]
[1729322290604,3.78845,2639.6,2639.5,0.7601]
[1729322291138,3.78845,2639.6,2638.9,3.78943]
[1729322291341,3.78881,2639.4,2639.0,0.7601]
[1729322291508,3.78891,2639.3,2639.0,1.215062]
[1729322292022,3.78881,2639.4,2639.0,0.7601]
[1729322292203,3.78911,2639.2,2639.0,0.7601]
[1729322293214,7.57822,2639.2,2639.0,0.7601]
[1729322293576,7.57824,2639.2,2639.0,0.7601]
[1729322293764,3.78911,2639.2,2639.0,0.7601]
[1729322294253,7.57822,2639.2,2639.0,0.7601]
[1729322294562,3.78911,2639.2,2639.0,0.7601]
[1729322306367,3.7888,2639.4,2639.0,0.7601]
[1729322306582,3.78881,2639.4,2639.0,1.215068]
[1729322307079,3.78896,2639.3,2639.0,1.215068]
[1729322307395,3.78903,2639.2,2639.0,1.215068]
[1729322307557,3.78903,2639.2,2639.0,0.7601]
[1729322308859,3.78892,2639.3,2639.0,0.7601]
[1729322312187,3.78881,2639.4,2639.0,0.7601]
[1729322313312,7.57766,2639.4,2639.0,0.7601]
[1729322314283,3.78881,2639.4,2639.0,0.7601]
[1729322314483,3.7889,2639.3,2639.0,0.7601]
[1729322315209,3.78881,2639.4,2639.0,0.7601]
[1729322315503,3.78881,2639.4,2639.0,1.215054]
[1729322315810,3.78889,2639.3,2639.0,0.7601]
[1729322316164,3.78881,2639.4,2639.0,0.7601]
[1729322316366,7.57766,2639.4,2639.0,0.7601]
[1729322316603,3.7889,2639.3,2639.0,0.7601]
[1729322317273,3.78881,2639.4,2639.0,0.7601]
[1729322317500,3.78881,2639.4,2639.0,1.21506]
[1729322319034,7.57764,2639.4,2639.0,1.21506]
[1729322319235,3.78881,2639.4,2639.0,1.21506]
[1729322320342,3.78881,2639.4,2639.1,0.28338191]
[1729322320542,3.78881,2639.4,2639.0,1.21506]
[1729322320734,3.78881,2639.4,2639.1,0.7838322]
[1729322320936,3.78881,2639.4,2639.1,0.50045]
[1729322321236,7.57765,2639.4,2639.1,0.50045]
[1729322321442,3.78881,2639.4,2639.2,0.8092]
[1729322322138,7.57701,2639.6,2639.2,0.8092]
[1729322322343,7.57699,2639.6,2639.2,1.364591]
[1729322322552,3.78845,2639.6,2639.2,1.364591]
[1729322322719,7.56825,2639.8,2639.4,0.8092]
[1729322323041,3.78859,2639.5,2639.4,0.8092]
[1729322328255,7.56827,2639.8,2639.4,0.8092]
[1729322328458,3.78838,2639.7,2639.4,0.8092]
[1729322329316,3.78854,2639.6,2639.4,0.8092]
[1729322330324,7.56818,2639.8,2639.4,0.8092]
[1729322330538,3.78834,2639.7,2639.4,0.8092]
[1729322332971,3.78848,2639.6,2639.4,0.8092]